Cogmind - Beta 10.2 @@@ ROGUE MODE // 2020.12.22 @ 22:07:39 Player: coopco Result: Destroyed by B-86 Titan with Matter Neutralizer Performance ------------- Evolutions (6) 3000 Regions Visited (10) 2000 Robots Destroyed (13) 65 Value Destroyed (474) 474 Prototype IDs (12) 240 Alien Tech Used (0) 0 Bonus (598) 598 TOTAL SCORE: 6377 Bonus ------- Follower Combat Kills 398 Entered Garrisons 200 Cogmind --------- Core Integrity 0/1150 Matter 290/300 Energy 81/100 System Corruption 4% Temperature Cool (9) Movement Walking (120) Location -4/Extension Parts ------- > --- POWER (3) -------- (None) > --- PROPULSION (6) --- Advanced Myomer Leg Gyrokinetic Inverter Gyrokinetic Inverter > --- UTILITY (8) ------ Enhanced Optical Array > --- WEAPON (2) ------- (None) > --- INVENTORY (4) ---- Fission Core Light Antimatter Reactor HERF Cannon Peak State ------------ > --- POWER ------------ Fission Core Fission Core Micro Fission Core > --- PROPULSION ------- Flexi-carbon Leg Flexi-carbon Leg Gyrokinetic Inverter Gyrokinetic Inverter Gyrokinetic Inverter Gyrokinetic Inverter > --- UTILITY ---------- Advanced Heat Sink Advanced Heat Sink Medium Storage Unit Inertial Stasis Machine Enhanced Optical Array Cloaking Device Long-range Tractor Beam > --- WEAPON ----------- Dispersion Rifle HERF Cannon > --- INVENTORY -------- Fission Core Light Antimatter Reactor Flexi-carbon Leg Advanced Myomer Leg Heavy Neutron Cannon Heavy Flak Cannon [Rating: 98] Favorites ----------- Power Micro Fission Core Engine Light Ion Engine Power Core Micro Fission Core Reactor Light Antimatter Reactor Propulsion Gyrokinetic Inverter Leg Advanced Myomer Leg Wheel Wheel Hover Unit Gyrokinetic Inverter Flight Unit Improved Flight Unit Utility Medium Storage Unit Device Advanced Sensor Array Storage Medium Storage Unit Processor Enhanced Optical Array Weapon Small Laser Energy Gun Small Laser Energy Cannon HERF Cannon Ballistic Gun Flak Gun Ballistic Cannon Heavy Flak Cannon Special Weapon Improved Plasma Cutter Build | -11 -10 -9 -9 -8 -7 -6 -6 -5 -4 -4 ------- Run | Scr Mat Mat Min Mat Fac Fac Gar Fac Fac Ext Slots Evolved 12 | . . 2 . 2 2 2 . 2 2 . Power 2 | . . 1 . . . . . . 1 . Propulsion 4 | . . 1 . 1 1 . . . 1 . Utility 6 | . . . . 1 1 2 . 2 . . Weapon . | . . . . . . . . . . . Parts Attached 67 | 5 3 4 . 1 13 7 1 9 9 15 Power 13 | 1 . 1 . . 2 2 . 1 2 4 Engine 3 | 1 . 1 . . . 1 . . . . Core 9 | . . . . . 2 1 . 1 2 3 Reactor 1 | . . . . . . . . . . 1 Propulsion 22 | 2 2 1 . 1 4 . . 5 3 4 Treads . | . . . . . . . . . . . Leg 4 | . . . . . . . . . 1 3 Wheel 2 | 2 . . . . . . . . . . Hover 13 | . 2 1 . 1 1 . . 5 2 1 Flight 3 | . . . . . 3 . . . . . Utility 19 | . . 2 . . 4 4 . 2 3 4 Device 11 | . . . . . 1 3 . 1 2 4 Storage 2 | . . 1 . . . . . 1 . . Processor 6 | . . 1 . . 3 1 . . 1 . Hackware . | . . . . . . . . . . . Protection . | . . . . . . . . . . . Artifact . | . . . . . . . . . . . Weapon 13 | 2 1 . . . 3 1 1 1 1 3 Energy Gun 6 | 2 1 . . . 1 . 1 . . 1 Energy Cannon 1 | . . . . . . . . . . 1 Ballistic Gun 3 | . . . . . 2 1 . . . . Ballistic Cannon 2 | . . . . . . . . 1 . 1 Launcher . | . . . . . . . . . . . Special Weapon 1 | . . . . . . . . . 1 . Impact Weapon . | . . . . . . . . . . . Slashing Weapon . | . . . . . . . . . . . Piercing Weapon . | . . . . . . . . . . . Special Melee Weapon . | . . . . . . . . . . . Unidentified Prototypes 7 | . . . . . 3 1 . . 3 . Parts Lost 40 | . . . . . 6 . 8 1 8 17 Power 10 | . . . . . 1 . 2 . 3 4 Propulsion 15 | . . . . . 4 . 3 . 4 4 Utility 9 | . . . . . . . 1 1 . 7 Weapon 6 | . . . . . 1 . 2 . 1 2 Highest Loss Streak 13 | . . . . . 5 . 8 1 7 13 Average Slot Usage (%) 71 | . 71 84 100 90 91 71 49 42 64 64 Engine 4 | . 14 22 22 18 2 3 4 . . . Core 6 | . . . . . 11 5 3 2 11 10 Leg 1 | . . . . . . . . . 4 3 Wheel 1 | . 21 . . . . . . . . . Hover 21 | . 7 33 33 36 32 6 3 14 24 19 Flight 1 | . . . . . 2 13 6 . . . Device 7 | . . . . . . 10 6 9 10 16 Storage 4 | . . 3 11 9 7 2 . 1 5 4 Processor 10 | . . 3 11 9 20 22 18 9 5 5 Energy Gun 6 | . 28 22 22 18 6 . 1 . . 2 Ballistic Gun 1 | . . . . . 6 5 3 . . . Naked Turns . | . . . . . . . . . . . Heaviest Build 53 | 5 5 16 16 16 32 23 25 22 25 53 Greatest Support 96 | 20 20 18 18 24 30 24 24 48 96 80 Greatest Overweight (x) 4 | . . . . . 1 1 1 4 . 1 Average Overweight (x) . | . . . . . . . . . . . Largest Inventory Capacity 8 | 4 4 8 8 8 8 8 4 8 8 8 Average Capacity 6 | 4 4 5 8 8 8 5 4 5 8 7 Most Carried 8 | 2 4 3 8 8 8 7 4 6 8 8 Average Carried 5 | 1 3 2 4 6 7 4 3 3 7 6 Final Capacity 8 | 4 4 8 8 8 8 4 4 8 8 4 Final Carried 8 | 2 4 3 7 8 8 4 3 6 7 3 Class Distribution -------------------- 79% | Mutant 8% | Generator-Mutant 6% | Scavenger-Mutant 3% | Sprinter Dominant Class ---------------- Mutant | -10/Materials Mutant | -9/Materials Mutant | -9/Mines Mutant | -8/Materials Mutant | -7/Factory Scout | -6/Factory Mutant | -6/Garrison Mutant | -5/Factory Mutant | -4/Factory Generator-Mutant | -4/Extension Resources | -11 -10 -9 -9 -8 -7 -6 -6 -5 -4 -4 ----------- Run | Scr Mat Mat Min Mat Fac Fac Gar Fac Fac Ext Matter Collected 899 | 250 . . 70 10 57 . 26 47 143 296 Remotely 41 | . . . . . . . . . . 41 Salvage Created 431 | . 50 . . . 192 . 56 47 . 86 Parts 16 | . 5 . . . 8 . 2 . . 1 Haulers Intercepted . | . . . . . . . . . . . Recyclers Shooed 1 | . . . . . . . . . . 1 Parts Field Recycled . | . . . . . . . . . . . Retrieved Matter . | . . . . . . . . . . . Parts Self-Destructed . | . . . . . . . . . . . Prevented . | . . . . . . . . . . . Kills | -11 -10 -9 -9 -8 -7 -6 -6 -5 -4 -4 ------- Run | Scr Mat Mat Min Mat Fac Fac Gar Fac Fac Ext Combat Hostiles Destroyed 13 | . 3 . . . 5 . 2 1 . 2 Guns 10 | . 3 . . . 5 . 2 . . . Cannons 3 | . . . . . . . . 1 . 2 Classes Destroyed 3 | . 1 . . . 2 . . . . . Swarmer 8 | . 3 . . . 3 . 2 . . . Grunt 3 | . . . . . 1 . . . . 2 Sentry 2 | . . . . . 1 . . 1 . . Best Kill Streak 4 | . 3 . . . 4 . 2 1 . 2 Combat Bots Only 4 | . 3 . . . 4 . 2 1 . 2 Max Kills in Single Turn 1 | . 1 . . . 1 . 1 1 . 1 Gunslinging . | . . . . . . . . . . . Exploded . | . . . . . . . . . . . Melee . | . . . . . . . . . . . Uniques/NPCs Destroyed . | . . . . . . . . . . . Combat | -11 -10 -9 -9 -8 -7 -6 -6 -5 -4 -4 -------- Run | Scr Mat Mat Min Mat Fac Fac Gar Fac Fac Ext Damage Taken 5519 | . 67 75 . 16 654 . 1037 598 1183 1889 Core 2287 | . 16 . . 10 127 . 590 364 459 721 Absorbed by Shields 28 | . . . . . . . . . . 28 Core Remaining (%) 80 | 100 93 . 100 98 81 . 30 63 . . Volleys Fired 47 | . 4 . . . 13 . 5 4 3 18 Largest 2 | . 2 . . . 2 . 2 1 1 2 Hottest 141 | . 80 . . . 108 . 78 53 20 141 Shots Fired 78 | . 8 . . . 26 . 9 4 3 28 Gun 58 | . 8 . . . 26 . 9 . . 15 Cannon 17 | . . . . . . . . 4 . 13 Launcher . | . . . . . . . . . . . Special 3 | . . . . . . . . . 3 . Kinetic 42 | . . . . . 21 . 4 4 . 13 Thermal 31 | . 8 . . . 5 . . . 3 15 Explosive . | . . . . . . . . . . . Electromagnetic 5 | . . . . . . . 5 . . . Robot Hit Streak 11 | . 4 . . . 6 . 5 8 . 11 Robot Miss Streak 6 | . 2 . . . 5 . 3 3 . 6 Penetration Max . | . . . . . . . . . . . Secondary Targets 3 | . 1 . . . 2 . . . . . Max Gunslinging Chain 1 | . 1 . . . 1 . . . . . Shots Hit Robots 59 | . 5 . . . 22 . 8 4 . 20 Core Hits 69 | . 3 . . . 19 . 13 10 2 22 Critical Hits . | . . . . . . . . . . . Critical Kills . | . . . . . . . . . . . Critical Parts Destroyed . | . . . . . . . . . . . Melee Attacks . | . . . . . . . . . . . Impact . | . . . . . . . . . . . Slashing . | . . . . . . . . . . . Piercing . | . . . . . . . . . . . Sneak Attacks . | . . . . . . . . . . . Combat Hostiles . | . . . . . . . . . . . Follow-up Attacks . | . . . . . . . . . . . Damage Inflicted 1399 | . 64 . . . 329 . 186 203 45 572 Guns 715 | . 64 . . . 329 . 139 . . 183 Cannons 491 | . . . . . . . . 166 . 325 Explosions . | . . . . . . . . . . . Melee . | . . . . . . . . . . . Ramming 193 | . . . . . . . 47 37 45 64 Kinetic 813 | . . . . . 252 . 70 166 . 325 Thermal 324 | . 64 . . . 77 . . . . 183 Explosive . | . . . . . . . . . . . Electromagnetic 69 | . . . . . . . 69 . . . Impact . | . . . . . . . . . . . Slashing . | . . . . . . . . . . . Piercing . | . . . . . . . . . . . Highest Corruption 6 | . . . . . . . 6 . 3 4 Average Corruption 3 | . . . . . . . 5 . 2 3 Corruption Purged . | . . . . . . . . . . . Effects 9 | . . . . . . . 1 . . 8 Message Errors 1 | . . . . . . . . . . 1 Matter Fused 2 | . . . . . . . . . . 2 Heat Flow Errors 2 | . . . . . . . . . . 2 Energy Discharges 3 | . . . . . . . 1 . . 2 Targeting Errors 1 | . . . . . . . . . . 1 Overload Shots . | . . . . . . . . . . . Overflow Damage . | . . . . . . . . . . . Projectiles . | . . . . . . . . . . . Explosions . | . . . . . . . . . . . Melee . | . . . . . . . . . . . Knockbacks 21 | . . . . . . . . . . 21 Impact 3 | . . . . . . . . . . 3 Kinetic 15 | . . . . . . . . . . 15 Secondary 3 | . . . . . . . . . . 3 Self-Inflicted Damage 88 | . . . . . . . 20 17 22 29 Shots . | . . . . . . . . . . . Rammed 31 | . . . . . . . 12 6 2 11 Targets Rammed 31 | . . . . . . . 12 6 2 11 Kicked . | . . . . . . . . . . . Crushed . | . . . . . . . . . . . Highest Temperature 387 | . 72 . . . 271 . 166 . 387 223 Average Temperature 117 | . 37 . . . 114 . 80 . 199 104 Received Heat Transfer 957 | . . 27 . . 213 . 336 81 54 246 Effects 1 | . . . . . . . . . . 1 Interference 1 | . . . . . . . . . . 1 Siege Activations . | . . . . . . . . . . . Robots Corrupted . | . . . . . . . . . . . Combat Hostiles . | . . . . . . . . . . . Parts Fried . | . . . . . . . . . . . Impact Corruptions . | . . . . . . . . . . . Robots Melted . | . . . . . . . . . . . Combat Hostiles . | . . . . . . . . . . . Parts Melted 1 | . 1 . . . . . . . . . Heat Transferred 584 | . 150 . . . 175 . . . . 259 Parts Sabotaged . | . . . . . . . . . . . Parts Stolen . | . . . . . . . . . . . Parts Stripped . | . . . . . . . . . . . Power Chain Reactions . | . . . . . . . . . . . Missiles Intercepted . | . . . . . . . . . . . Alert | -11 -10 -9 -9 -8 -7 -6 -6 -5 -4 -4 ------- Run | Scr Mat Mat Min Mat Fac Fac Gar Fac Fac Ext Peak Influence 443 | . 85 50 44 77 259 149 387 443 324 294 Initial 212 | . . 35 19 1 35 121 2 203 212 138 Average 152 | . 50 43 15 27 119 140 171 299 224 179 Maximum Alert Level 2 | . . . . . 1 . 1 2 1 1 Low Security (%) 61 | 100 100 100 100 100 81 100 47 . . 80 Level 1 38 | . . . . . 18 . 52 92 100 19 Level 2 . | . . . . . . . . 7 . . Level 3 . | . . . . . . . . . . . Level 4 . | . . . . . . . . . . . Level 5 . | . . . . . . . . . . . High Security . | . . . . . . . . . . . Max Security . | . . . . . . . . . . . Squads Dispatched 9 | . . . . . 3 . . . 3 3 Investigation . | . . . . . . . . . . . Extermination 1 | . . . . . . . . . 1 . Reinforcement 8 | . . . . . 3 . . . 2 3 Assault . | . . . . . . . . . . . Garrison . | . . . . . . . . . . . Intercept . | . . . . . . . . . . . Construction Impeded . | . . . . . . . . . . . Haulers Reinforced . | . . . . . . . . . . . Stealth | -11 -10 -9 -9 -8 -7 -6 -6 -5 -4 -4 --------- Run | Scr Mat Mat Min Mat Fac Fac Gar Fac Fac Ext Distress Signals 6 | . . . . . 2 . . 2 2 . Communications Jammed . | . . . . . . . . . . . Distress Signals . | . . . . . . . . . . . Times Spotted 121 | . 4 1 2 7 16 . 26 24 17 24 Peak Tracking Total 17 | . 3 1 3 4 6 . 12 17 13 11 Tactical Retreats 15 | . . . . 1 2 . 6 3 1 2 Traps | -11 -10 -9 -9 -8 -7 -6 -6 -5 -4 -4 ------- Run | Scr Mat Mat Min Mat Fac Fac Gar Fac Fac Ext Traps Triggered 5 | . . . . . . 1 1 1 1 1 Indirectly . | . . . . . . . . . . . Trap Hack Attempts . | . . . . . . . . . . . Triggered . | . . . . . . . . . . . Disarmed . | . . . . . . . . . . . Reprogrammed . | . . . . . . . . . . . Reused . | . . . . . . . . . . . Traps Extracted . | . . . . . . . . . . . Installed . | . . . . . . . . . . . Triggered . | . . . . . . . . . . . Machines | -11 -10 -9 -9 -8 -7 -6 -6 -5 -4 -4 ---------- Run | Scr Mat Mat Min Mat Fac Fac Gar Fac Fac Ext Machines Disabled 1 | . . . . . 1 . . . . . Max in Single Turn 1 | . . . . . 1 . . . . . Machines Sabotaged . | . . . . . . . . . . . Garrisons Compromised . | . . . . . . . . . . . Overloaded Fab Kills . | . . . . . . . . . . . Fab Network Shutdowns . | . . . . . . . . . . . Hacking | -11 -10 -9 -9 -8 -7 -6 -6 -5 -4 -4 --------- Run | Scr Mat Mat Min Mat Fac Fac Gar Fac Fac Ext Machines Accessed 13 | . 2 . 1 2 2 3 . 1 1 1 Terminals 9 | . 2 . . 2 1 2 . . 1 1 Fabricators 2 | . . . . . 1 . . 1 . . Repair Stations . | . . . . . . . . . . . Recycling Units . | . . . . . . . . . . . Scanalyzers . | . . . . . . . . . . . Garrison Access 1 | . . . . . . 1 . . . . Total Hacks 28 | . 4 . 1 8 4 5 . 2 3 1 Successful 20 | . 2 . 1 6 2 5 . 2 1 1 Failed 8 | . 2 . . 2 2 . . . 2 . Catastrophic . | . . . . . . . . . . . Database Lockouts . | . . . . . . . . . . . Manual 10 | . 1 . . 5 2 2 . . . . Terminals 23 | . 4 . . 8 3 4 . . 3 1 Fabricators 3 | . . . . . 1 . . 2 . . Repair Stations . | . . . . . . . . . . . Recycling Units . | . . . . . . . . . . . Scanalyzers . | . . . . . . . . . . . Garrison Access 1 | . . . . . . 1 . . . . Terminal Hacks 13 | . 2 . 1 4 1 3 . . 1 1 Record 3 | . 1 . . . . 1 . . 1 . Prototype ID Bank 2 | . . . . 1 . 1 . . . . Open Door 2 | . . . 1 . . . . . . 1 Branch Access Points 1 | . . . . 1 . . . . . . Emergency Access Points 1 | . . . . . 1 . . . . . Terminal Index 1 | . . . . 1 . . . . . . Unreport Threat 1 | . . . . . . 1 . . . . Hauler Manifests 2 | . 1 . . 1 . . . . . . Fabricator Hacks 2 | . . . . . . . . 2 . . Network Status 1 | . . . . . . . . 1 . . Build 1 | . . . . . . . . 1 . . Repair Station Hacks . | . . . . . . . . . . . Recycling Unit Hacks . | . . . . . . . . . . . Scanalyzer . | . . . . . . . . . . . Garrison Access Hacks 1 | . . . . . . 1 . . . . Unlock Access 1 | . . . . . . 1 . . . . Unauthorized Hacks 4 | . . . . 2 1 1 . . . . Terminals 4 | . . . . 2 1 1 . . . . Botnet 4 | . . . . 2 1 1 . . . . Fabricators . | . . . . . . . . . . . Repair Stations . | . . . . . . . . . . . Recycling Units . | . . . . . . . . . . . Scanalyzers . | . . . . . . . . . . . Garrison Access . | . . . . . . . . . . . Data Cores Recovered . | . . . . . . . . . . . Used . | . . . . . . . . . . . Hacking Detections 9 | . 1 . . 2 2 2 . 1 1 . Full Trace Events . | . . . . . . . . . . . Feedback Events . | . . . . . . . . . . . Feedback Blocked . | . . . . . . . . . . . Robot Schematics Acquired . | . . . . . . . . . . . Robots Built 1 | . . . . . . . . 1 . . Matter 153 | . . . . . . . . 153 . . Time 81 | . . . . . . . . 81 . . Total Robot Build Rating 1 | . . . . . . . . 1 . . Part Schematics Acquired . | . . . . . . . . . . . Parts Built . | . . . . . . . . . . . Matter . | . . . . . . . . . . . Time . | . . . . . . . . . . . Total Part Build Rating . | . . . . . . . . . . . Parts Repaired . | . . . . . . . . . . . Time . | . . . . . . . . . . . Parts Recycled . | . . . . . . . . . . . Recycled Matter . | . . . . . . . . . . . Retrieved Matter . | . . . . . . . . . . . Retrieved Components . | . . . . . . . . . . . Parts Scanalyzed . | . . . . . . . . . . . Part Schematics Acquired . | . . . . . . . . . . . Parts Damaged . | . . . . . . . . . . . Bothacking | -11 -10 -9 -9 -8 -7 -6 -6 -5 -4 -4 ------------ Run | Scr Mat Mat Min Mat Fac Fac Gar Fac Fac Ext Used RIF Installer . | . . . . . . . . . . . Robots Hacked . | . . . . . . . . . . . Non-combat . | . . . . . . . . . . . Combat . | . . . . . . . . . . . Robot Hacks Applied . | . . . . . . . . . . . Relay Couplers Released . | . . . . . . . . . . . Robots Rewired 6 | . . . . . . . . . . 6 Allies Hacked . | . . . . . . . . . . . Hacks Repelled . | . . . . . . . . . . . Allies | -11 -10 -9 -9 -8 -7 -6 -6 -5 -4 -4 -------- Run | Scr Mat Mat Min Mat Fac Fac Gar Fac Fac Ext Total Allies 11 | . . . 3 . . . . 1 . 7 Largest Group 4 | . . . 3 . . . . 1 1 4 Highest-Rated Group 193 | . . . 40 . . . . 10 10 193 Highest-Rated Ally 49 | . . . 16 . . . . 10 10 49 Total Orders . | . . . . . . . . . . . Ally Attacks 47 | . . . 14 . . . . . . 33 Total Damage 1095 | . . . 174 . . . . . . 921 Kills 10 | . . . 2 . . . . . . 8 Allies Corrupted . | . . . . . . . . . . . Allies Melted . | . . . . . . . . . . . Intel | -11 -10 -9 -9 -8 -7 -6 -6 -5 -4 -4 ------- Run | Scr Mat Mat Min Mat Fac Fac Gar Fac Fac Ext Robot Analysis Total . | . . . . . . . . . . . Derelict Logs Recovered 1 | . . . 1 . . . . . . . Drone Launches . | . . . . . . . . . . . Drone Recoveries . | . . . . . . . . . . . Exploration | -11 -10 -9 -9 -8 -7 -6 -6 -5 -4 -4 ------------- Run | Scr Mat Mat Min Mat Fac Fac Gar Fac Fac Ext Turns Passed 1967 | 41 119 34 194 67 327 99 146 214 338 388 Spaces Moved 2560 | 40 112 52 333 128 490 145 290 261 450 259 Core 290 | 1 . . . . . . 95 151 . 43 Treads . | . . . . . . . . . . . Legs 8 | . . . . . . . . . . 8 Wheels 131 | 39 92 . . . . . . . . . Hover 1736 | . 20 52 333 128 435 . . 110 450 208 Flight 395 | . . . . . 55 145 195 . . . Fastest Speed 32 | 50 56 52 52 48 32 32 32 50 50 50 Average Speed 56 | 79 75 52 52 48 48 43 38 69 69 65 Slowest Speed 250 | 80 80 52 52 48 104 102 102 250 76 120 Overloaded Moves . | . . . . . . . . . . . Propulsion Burnouts . | . . . . . . . . . . . Robots Hopped 5 | . . . . . . . 5 . . . Cave-ins Triggered . | . . . . . . . . . . . Exploration Rate (%) 24 | 3 35 8 60 19 20 6 52 10 14 43 Regions Visited 10 Branch Regions 2 Pre-discovered Areas . | . . . . . . . . . . . Known Exits Taken 1 | . . . . . . 1 . . . . Unknown Exits Taken 8 | 1 1 1 1 1 1 . . 1 1 . Scrap Searched 1 | . . . 1 . . . . . . . Spaces Dug . | . . . . . . . . . . . Terrain Destroyed . | . . . . . . . . . . . Melee . | . . . . . . . . . . . Projectile . | . . . . . . . . . . . AOE . | . . . . . . . . . . . Terrain Rammed . | . . . . . . . . . . . Walls Destroyed . | . . . . . . . . . . . Machines Disabled . | . . . . . . . . . . . Actions | -11 -10 -9 -9 -8 -7 -6 -6 -5 -4 -4 --------- Run | Scr Mat Mat Min Mat Fac Fac Gar Fac Fac Ext Total 2967 | 46 138 57 353 133 552 181 308 287 467 445 Wait 71 | . 11 1 16 1 22 3 6 1 . 10 Move 2539 | 39 111 51 332 127 489 144 278 260 449 259 Hop 4 | . . . . . . . 4 . . . Pick Up 36 | 2 4 1 4 3 5 4 . 5 3 5 Fast Attach 37 | 5 2 2 . . 6 1 . 6 6 9 Attach 23 | . . 2 . 1 5 4 1 3 2 5 Detach 9 | . 1 . . . 4 1 1 1 1 . Swap 7 | . 1 . . . 2 2 . . 1 1 Drop 19 | . 4 . 1 1 6 4 1 . . 2 Fire 47 | . 4 . . . 13 . 5 4 3 18 Melee . | . . . . . . . . . . . Ram 31 | . . . . . . . 12 6 2 11 Kick . | . . . . . . . . . . . Crush . | . . . . . . . . . . . Escape Stasis 23 | . . . . . . 18 . . . 5 Rewire 121 | . . . . . . . . 1 . 120 Trap . | . . . . . . . . . . . Miscellaneous . | . . . . . . . . . . . Route ------- -11/Scrapyard -10/Materials -9/Materials -9/Mines (discovered 2 exits: *Mat x2) -8/Materials -7/Factory (discovered 2 exits: *Fac / Sto) -6/Factory -6/Garrison (discovered 2 exits: *Fac x2) -5/Factory -4/Factory -4/Extension History --------- Turn | Location | Event 12 | -11/Scrapyard | Discovered new exit (range 15) 42 | -11/Scrapyard | Entered Materials 127 | -10/Materials | Discovered new exit (range 12) 161 | -10/Materials | Entered another Materials area 161 | -9/Materials | Evolved 2 slots: Power x1, Propulsion x1 175 | -9/Materials | Discovered new exit (range 16) 195 | -9/Materials | Entered Mines 198 | -9/Mines | Assisted by bots powering up and referring to "LRC-V3" 269 | -9/Mines | Found the Drone Emporium 271 | -9/Mines | Found Prototype Device 295 | -9/Mines | Discovered new exit (range 7) 300 | -9/Mines | Build established: Mutant 364 | -9/Mines | Discovered new exit (range 5) 389 | -9/Mines | Entered Materials 389 | -8/Materials | Evolved 2 slots: Propulsion x1, Utility x1 437 | -8/Materials | Discovered new exit (range 11) 456 | -8/Materials | Entered Factory 456 | -7/Factory | Evolved 2 slots: Propulsion x1, Utility x1 457 | -7/Factory | Identified exit to Storage 461 | -7/Factory | Identified Decoy Drone Bay 761 | -7/Factory | Lost 5 parts (4n1w) 772 | -7/Factory | Discovered new exit (range 22) 783 | -7/Factory | Entered another Factory area 783 | -6/Factory | Evolved 2 slots: Utility x2 881 | -6/Factory | Identified exit to Garrison 882 | -6/Factory | Entered Garrison 896 | -6/Garrison | Triggered checkpoint 916 | -6/Garrison | Discovered new exit (range 13) 924 | -6/Garrison | Identified exit to Factory 935 | -6/Garrison | Attempted to access garrison exit controls, blocked by remote lockdown 986 | -6/Garrison | Triggered checkpoint 1000 | -6/Garrison | Core integrity fell below 50% 1012 | -6/Garrison | Triggered checkpoint 1021 | -6/Garrison | Discovered exit to Factory (range 13) 1022 | -6/Garrison | Lost 8 parts (2p3n1u2w) 1028 | -6/Garrison | Entered Factory 1028 | -5/Factory | Evolved 2 slots: Utility x2 1123 | -5/Factory | Fabricated A-02 Transporter? 1191 | -5/Factory | Discovered new exit (range 22) 1242 | -5/Factory | Entered another Factory area 1242 | -4/Factory | Accompanied by 1 ally 1242 | -4/Factory | Evolved 2 slots: Power x1, Propulsion x1 1276 | -4/Factory | Found Prototype Processor 1276 | -4/Factory | Identified Exp. Melee Analysis Suite 1573 | -4/Factory | Discovered new exit (range 14) 1580 | -4/Factory | Entered Extension 1611 | -4/Extension | Lost 7 parts (3p3n1w) 1874 | -4/Extension | Core integrity fell below 50% 1889 | -4/Extension | Lost 3 parts (1p2u) 1945 | -4/Extension | Spotted B-86 Titan 1947 | -4/Extension | Rescued a captive Derelict 1952 | -4/Extension | Spotted B-86 Titan 1954 | -4/Extension | Core integrity fell below 20% 1968 | -4/Extension | Destroyed by B-86 Titan with Matter Neutralizer Last Messages --------------- >>Open Sealed Heavy Doors opened. 01947_ AM-JFN(l): "Free at last!" 01951_ Penetrated by Slug. 01953_ System corrupted: Matter fused (-5). 01953_ Penetrated by Slug. 01953_ Slug penetrates Machine. 01953_ Machine disabled. 01954_ Flexi-carbon Leg destroyed. 01954_ Gyrokinetic Inverter destroyed. 01954_ Penetrated by Slug. 01957_ Machine disabled. 01957_ Slug penetrates Machine. 01959_ Penetrated by Slug. 01961_ Y-64 Sentinel destroyed. 01963_ Y-64 Sentinel suffers critical hit. 01963_ Y-64 Sentinel destroyed. 01964_ Slug penetrates Wall. 01965_ Slug penetrates B-86 Titan. 01967_ AM-JFN(l) destroyed. Map ----- +----------------------------------------------------+ | [#????????????# "#???????????????????? | | #????????????# "#???????????????????? | | #????????????# T#???????????????????? | | #????????????############# "#???????????????????? | | #????????????????????????# "#???????????????????? | | #????????????????????????# "#???????????????????? | | #????????????????????????# ##???????????????????? | | ##????????????????????????# #????????????????????? | | ??????????????????????????# #????????????????????? | | ??????????????????????????# #????????????????????? | | ??????????????????????????# #????????????????????? | | ??????????????????????##### #????????????????????? | | ??????????????????????# #????????????????????? | | ??????????????????????###T# #????????????????????? | | ????????????????????????### #????????????????????? | | ??????????????????????????# #????????????????????? | | ??????????????????????????# #????????????????????? | | ???????????????????????#### #??##??#?????????????? | | ???????????????????????#;;# ### ## ### ##????????? | | ????????????????????????#" " "" ""#???????? | | ???????????????????????## "%= " " #???????? | | ???????????????????????#; =!%= #???????? | | ???????????????????????## %! #???????? | | ????????################; R ##??????? | | ???? ??? | | ???? w @ ??? | | ???? ??? | | ???? ??? | | ????? R k R R ???? | | ?????#################### BB BB #####???? | | ????????????????????????# BB BB #???????? | | ????????????????????????# #???????? | | ????????????????????????# #???????? | | ????????????????????????# #???????? | | ????????????????????????######T#"""#######???????? | | ??????????????????????????????##?????????????????? | | ?????????????????????????????????????????????????? | | | | | | | | | | | | | | | | | | | | | | | | | | | +----------------------------------------------------+ Best States ------------- Heat Dissipation 81 Energy Generation 47 Energy Capacity 590 Matter Stores 300 Matter Capacity 300 Sight Range 22 Robot Scan Range 16 Terrain Scan Density 10 Cloak Strength 2 Additional Mass Support 16 Evasion (%) 63 Item Schematics ----------------- None Robot Schematics ------------------ None Fabricated ------------ A-02 Transporter | x1 | -5/Factory | Preloaded Alien Tech Used ----------------- None Achievements -------------- A New Friend Challenges ------------ None Game ------ Seed GreatGaussPlating Manual? 0 Play Time 00:41:34 Cumulative 4.0 hours Start 2020.12.22 @ 21:24:38 End 2020.12.22 @ 22:07:39 Sessions 1 Manual Loads 0 Difficulty Rogue Special Mode None Game No. 6 Rogue 6 Adventurer 0 Explorer 0 Win Type - Total 0 Types 0/0/0/0/0/0/0/0/0 Lore% 12 Gallery% 12 Achievement% 25 Wizard Run 0 Options --------- ASCII 0 Keyboard 1 Movement Numpad Keybinds 0 Fullscreen 2 Font 18/SmallcapsGlow Map View 76x50 Tactical HUD 1 Map Filters NONE Filters NONE Steam 1 RUN: 410193ae-b716-4c24-b4f2-b83c6487e774